Cogmind - Beta 10.2 @@@ ROGUE MODE // 2022.02.20 @ 08:19:32 Player: Abstractlime Result: Destroyed by D-53 Grenadier with Mini Grenade Launcher Performance ------------- Evolutions (1) 500 Regions Visited (3) 600 Robots Destroyed (18) 90 Value Destroyed (448) 448 Prototype IDs (1) 20 Alien Tech Used (0) 0 Bonus (0) 0 TOTAL SCORE: 1658 Bonus ------- None Cogmind --------- Core Integrity 0/400 Matter 300/300 Energy 280/280 System Corruption 0% Temperature Cool (0) Movement Walking (120) Location -9/Mines Parts ------- > --- POWER (1) -------- Heavy Ion Engine > --- PROPULSION (3) --- Flexi-carbon Leg > --- UTILITY (3) ------ Heat Sink Small Storage Unit Terrain Scanner > --- WEAPON (2) ------- (None) > --- INVENTORY (6) ---- Improved Ion Engine Heat Sink Beam Rifle Peak State ------------ > --- POWER ------------ Heavy Ion Engine > --- PROPULSION ------- Flexi-carbon Leg > --- UTILITY ---------- Heat Sink Small Storage Unit Terrain Scanner > --- WEAPON ----------- Spread Laser Grenade Launcher > --- INVENTORY -------- Improved Ion Engine Heat Sink Beam Rifle [Rating: 14] Favorites ----------- Power Heavy Ion Engine Engine Heavy Ion Engine Propulsion Light Treads Treads Light Treads Leg Aluminum Leg Utility Small Storage Unit Device Sensor Array Storage Small Storage Unit Weapon Small Laser Energy Gun Small Laser Energy Cannon Beam Cannon Ballistic Gun Assault Rifle Launcher Grenade Launcher Build | -11 -10 -9 -9 ------- Run | Scr Mat Mat Min Slots Evolved 2 | . . 2 . Power . | . . . . Propulsion 1 | . . 1 . Utility 1 | . . 1 . Weapon . | . . . . Parts Attached 30 | 7 4 15 4 Power 4 | 1 . 3 . Engine 4 | 1 . 3 . Core . | . . . . Reactor . | . . . . Propulsion 12 | 2 2 7 1 Treads 6 | . . 6 . Leg 6 | 2 2 1 1 Wheel . | . . . . Hover . | . . . . Flight . | . . . . Utility 4 | 1 1 1 1 Device 3 | . 1 1 1 Storage 1 | 1 . . . Processor . | . . . . Hackware . | . . . . Protection . | . . . . Artifact . | . . . . Weapon 10 | 3 1 4 2 Energy Gun 7 | 2 1 3 1 Energy Cannon 1 | . . 1 . Ballistic Gun 1 | 1 . . . Ballistic Cannon . | . . . . Launcher 1 | . . . 1 Special Weapon . | . . . . Impact Weapon . | . . . . Slashing Weapon . | . . . . Piercing Weapon . | . . . . Special Melee Weapon . | . . . . Unidentified Prototypes 1 | . . 1 . Parts Lost 15 | . 1 6 8 Power 1 | . . 1 . Propulsion 5 | . . 2 3 Utility 1 | . . . 1 Weapon 8 | . 1 3 4 Highest Loss Streak 6 | . 1 3 6 Average Slot Usage (%) 86 | . 88 87 84 Engine 10 | . 14 9 11 Treads 16 | . . 24 15 Leg 10 | . 28 5 4 Device 14 | . 3 15 20 Storage 11 | . 14 11 11 Energy Gun 15 | . 28 11 10 Energy Cannon 5 | . . 9 4 Launcher 1 | . . . 6 Naked Turns . | . . . . Heaviest Build 20 | 13 13 20 20 Greatest Support 63 | 20 20 63 63 Greatest Overweight (x) 6 | 1 . 1 6 Average Overweight (x) . | . . . . Largest Inventory Capacity 6 | 6 6 6 6 Average Capacity 5 | 5 6 6 6 Most Carried 6 | 4 6 6 6 Average Carried 4 | 2 5 4 4 Final Capacity 6 | 6 6 6 6 Final Carried 6 | 3 6 6 3 Class Distribution -------------------- 92% | Mutant 7% | Scavenger-Mutant Dominant Class ---------------- Mutant | -10/Materials Mutant | -9/Materials Mutant | -9/Mines Resources | -11 -10 -9 -9 ----------- Run | Scr Mat Mat Min Matter Collected 515 | 237 73 100 105 Remotely . | . . . . Salvage Created 627 | . 228 304 95 Parts 32 | . 9 19 4 Haulers Intercepted . | . . . . Recyclers Shooed . | . . . . Parts Field Recycled . | . . . . Retrieved Matter . | . . . . Parts Self-Destructed . | . . . . Prevented . | . . . . Kills | -11 -10 -9 -9 ------- Run | Scr Mat Mat Min Combat Hostiles Destroyed 33 | . 5 10 18 Guns 12 | . 5 4 3 Cannons 6 | . . 6 . AOE 15 | . . . 15 Classes Destroyed 5 | . 2 2 1 Builder 1 | . 1 . . Swarmer 8 | . . 6 2 Grunt 5 | . 5 . . Sentry 4 | . . 4 . Assembled 16 | . . . 16 Best Kill Streak 16 | . 3 3 16 Combat Bots Only 16 | . 3 3 16 Max Kills in Single Turn 8 | . 1 1 8 Gunslinging . | . . . . Exploded 8 | . . . 8 Melee . | . . . . Uniques/NPCs Destroyed . | . . . . Combat | -11 -10 -9 -9 -------- Run | Scr Mat Mat Min Damage Taken 1994 | . 296 792 906 Core 448 | . 34 119 295 Absorbed by Shields . | . . . . Core Remaining (%) 93 | 100 86 . . Volleys Fired 73 | . 17 40 16 Largest 2 | . 2 2 2 Hottest 125 | . 90 100 125 Shots Fired 127 | . 33 76 18 Gun 87 | . 33 43 11 Cannon 34 | . . 33 1 Launcher 6 | . . . 6 Special . | . . . . Kinetic . | . . . . Thermal 121 | . 33 76 12 Explosive 6 | . . . 6 Electromagnetic . | . . . . Robot Hit Streak 9 | . 5 9 7 Robot Miss Streak 5 | . 2 5 5 Penetration Max . | . . . . Secondary Targets 2 | . 2 . . Max Gunslinging Chain 1 | . 1 . . Shots Hit Robots 84 | . 24 46 14 Core Hits 63 | . 12 14 37 Critical Hits . | . . . . Critical Kills . | . . . . Critical Parts Destroyed . | . . . . Melee Attacks . | . . . . Impact . | . . . . Slashing . | . . . . Piercing . | . . . . Sneak Attacks . | . . . . Combat Hostiles . | . . . . Follow-up Attacks . | . . . . Damage Inflicted 1742 | . 320 592 830 Guns 704 | . 320 297 87 Cannons 312 | . . 295 17 Explosions 726 | . . . 726 Melee . | . . . . Ramming . | . . . . Kinetic . | . . . . Thermal 1016 | . 320 592 104 Explosive 726 | . . . 726 Electromagnetic . | . . . . Impact . | . . . . Slashing . | . . . . Piercing . | . . . . Highest Corruption . | . . . . Average Corruption . | . . . . Corruption Purged . | . . . . Overload Shots . | . . . . Overflow Damage 18 | . . . 18 Projectiles . | . . . . Explosions 18 | . . . 18 Melee . | . . . . Knockbacks . | . . . . Impact . | . . . . Kinetic . | . . . . Secondary . | . . . . Self-Inflicted Damage 26 | . . . 26 Shots 2 | . . . 2 Rammed . | . . . . Targets Rammed . | . . . . Kicked . | . . . . Crushed . | . . . . Highest Temperature 439 | . 439 363 47 Average Temperature 144 | . 236 99 30 Received Heat Transfer 334 | . 159 135 40 Effects 6 | . 4 2 . Shutdowns 1 | . 1 . . Energy Bleed 3 | . 2 1 . Damage (minor) 2 | . 1 1 . Siege Activations . | . . . . Robots Corrupted . | . . . . Combat Hostiles . | . . . . Parts Fried . | . . . . Impact Corruptions . | . . . . Robots Melted . | . . . . Combat Hostiles . | . . . . Parts Melted 5 | . 3 2 . Heat Transferred 2325 | . 843 1340 142 Parts Sabotaged . | . . . . Parts Stolen . | . . . . Parts Stripped . | . . . . Power Chain Reactions . | . . . . Missiles Intercepted . | . . . . Alert | -11 -10 -9 -9 ------- Run | Scr Mat Mat Min Peak Influence 344 | . 132 344 71 Initial 61 | . . 55 61 Average 102 | . 39 179 49 Maximum Alert Level 1 | . . 1 . Low Security (%) 80 | 100 100 55 100 Level 1 19 | . . 44 . Level 2 . | . . . . Level 3 . | . . . . Level 4 . | . . . . Level 5 . | . . . . High Security . | . . . . Max Security . | . . . . Squads Dispatched 1 | . 1 . . Investigation . | . . . . Extermination . | . . . . Reinforcement 1 | . 1 . . Assault . | . . . . Garrison . | . . . . Intercept . | . . . . Construction Impeded . | . . . . Haulers Reinforced . | . . . . Stealth | -11 -10 -9 -9 --------- Run | Scr Mat Mat Min Distress Signals . | . . . . Communications Jammed . | . . . . Distress Signals . | . . . . Times Spotted 45 | . 7 13 25 Peak Tracking Total 18 | . 4 3 18 Tactical Retreats 3 | . . 1 2 Traps | -11 -10 -9 -9 ------- Run | Scr Mat Mat Min Traps Triggered . | . . . . Indirectly . | . . . . Trap Hack Attempts . | . . . . Triggered . | . . . . Disarmed . | . . . . Reprogrammed . | . . . . Reused . | . . . . Traps Extracted . | . . . . Installed 1 | . . . 1 Triggered . | . . . . Machines | -11 -10 -9 -9 ---------- Run | Scr Mat Mat Min Machines Disabled . | . . . . Max in Single Turn . | . . . . Machines Sabotaged . | . . . . Garrisons Compromised . | . . . . Overloaded Fab Kills . | . . . . Fab Network Shutdowns . | . . . . Hacking | -11 -10 -9 -9 --------- Run | Scr Mat Mat Min Machines Accessed 2 | . 1 1 . Terminals 2 | . 1 1 . Fabricators . | . . . . Repair Stations . | . . . . Recycling Units . | . . . . Scanalyzers . | . . . . Garrison Access . | . . . . Total Hacks 3 | . 1 2 . Successful 2 | . 1 1 . Failed 1 | . . 1 . Catastrophic . | . . . . Database Lockouts . | . . . . Manual . | . . . . Terminals 3 | . 1 2 . Fabricators . | . . . . Repair Stations . | . . . . Recycling Units . | . . . . Scanalyzers . | . . . . Garrison Access . | . . . . Terminal Hacks 2 | . 1 1 . Record 1 | . 1 . . Zone Layout 1 | . . 1 . Fabricator Hacks . | . . . . Repair Station Hacks . | . . . . Recycling Unit Hacks . | . . . . Scanalyzer . | . . . . Garrison Access Hacks . | . . . . Unauthorized Hacks . | . . . . Terminals . | . . . . Fabricators . | . . . . Repair Stations . | . . . . Recycling Units . | . . . . Scanalyzers . | . . . . Garrison Access . | . . . . Data Cores Recovered . | . . . . Used . | . . . . Hacking Detections 2 | . 1 1 . Full Trace Events . | . . . . Feedback Events . | . . . . Feedback Blocked . | . . . . Robot Schematics Acquired . | . . . . Robots Built . | . . . . Matter . | . . . . Time . | . . . . Total Robot Build Rating . | . . . . Part Schematics Acquired . | . . . . Parts Built . | . . . . Matter . | . . . . Time . | . . . . Total Part Build Rating . | . . . . Parts Repaired . | . . . . Time . | . . . . Parts Recycled . | . . . . Recycled Matter . | . . . . Retrieved Matter . | . . . . Retrieved Components . | . . . . Parts Scanalyzed . | . . . . Part Schematics Acquired . | . . . . Parts Damaged . | . . . . Bothacking | -11 -10 -9 -9 ------------ Run | Scr Mat Mat Min Used RIF Installer . | . . . . Robots Hacked . | . . . . Non-combat . | . . . . Combat . | . . . . Robot Hacks Applied . | . . . . Relay Couplers Released . | . . . . Robots Rewired . | . . . . Allies Hacked . | . . . . Hacks Repelled . | . . . . Allies | -11 -10 -9 -9 -------- Run | Scr Mat Mat Min Total Allies . | . . . . Largest Group . | . . . . Highest-Rated Group . | . . . . Highest-Rated Ally . | . . . . Total Orders . | . . . . Ally Attacks . | . . . . Total Damage . | . . . . Kills . | . . . . Allies Corrupted . | . . . . Allies Melted . | . . . . Intel | -11 -10 -9 -9 ------- Run | Scr Mat Mat Min Robot Analysis Total . | . . . . Derelict Logs Recovered 1 | . . . 1 Drone Launches . | . . . . Drone Recoveries . | . . . . Exploration | -11 -10 -9 -9 ------------- Run | Scr Mat Mat Min Turns Passed 1295 | 53 279 566 397 Spaces Moved 707 | 30 179 258 240 Core 9 | 3 . . 6 Treads 280 | . . 185 95 Legs 418 | 27 179 73 139 Wheels . | . . . . Hover . | . . . . Flight . | . . . . Fastest Speed 50 | 50 120 120 120 Average Speed 138 | 119 120 149 141 Slowest Speed 350 | 150 120 160 350 Overloaded Moves . | . . . . Propulsion Burnouts . | . . . . Robots Hopped . | . . . . Cave-ins Triggered . | . . . . Exploration Rate (%) 33 | 4 43 25 63 Regions Visited 3 Branch Regions 1 Pre-discovered Areas . | . . . . Known Exits Taken . | . . . . Unknown Exits Taken 3 | 1 1 1 . Scrap Searched 2 | . . . 2 Spaces Dug . | . . . . Terrain Destroyed 22 | . . . 22 Melee . | . . . . Projectile . | . . . . AOE 22 | . . . 22 Terrain Rammed . | . . . . Walls Destroyed . | . . . . Machines Disabled . | . . . . Actions | -11 -10 -9 -9 --------- Run | Scr Mat Mat Min Total 900 | 47 211 362 280 Wait 53 | . 3 36 14 Move 704 | 29 178 257 240 Hop . | . . . . Pick Up 29 | 10 6 10 3 Fast Attach . | . . . . Attach 20 | 6 2 8 4 Detach . | . . . . Swap 10 | 1 2 7 . Drop 10 | 1 3 4 2 Fire 73 | . 17 40 16 Melee . | . . . . Ram . | . . . . Kick . | . . . . Crush . | . . . . Escape Stasis . | . . . . Rewire . | . . . . Trap 1 | . . . 1 Miscellaneous . | . . . . Route ------- -11/Scrapyard -10/Materials -9/Materials (discovered 2 exits: [*Mat] / [*Min]) -9/Mines History --------- Turn | Location | Event 14 | -11/Scrapyard | Discovered new exit (range 15) 54 | -11/Scrapyard | Entered Materials 321 | -10/Materials | Build established: Mutant 324 | -10/Materials | Discovered new exit (range 3) 333 | -10/Materials | Entered another Materials area 333 | -9/Materials | Evolved 2 slots: Propulsion x1, Utility x1 430 | -9/Materials | Lost 3 parts (1p2w) 602 | -9/Materials | Discovered new exit (range 6) 781 | -9/Materials | Discovered new exit (range 3) 899 | -9/Materials | Entered Mines 951 | -9/Mines | Met a Derelict bent on vengeance 1019 | -9/Mines | Learned 2 Materials zone layouts 1041 | -9/Mines | Found a hidden stash of uninstalled traps 1054 | -9/Mines | Assembled infested the area 1059 | -9/Mines | Assisted by a Guerilla fighting off Assembled 1069 | -9/Mines | Core integrity fell below 50% 1111 | -9/Mines | Destroyed 16 combat bots 1121 | -9/Mines | Lost 6 parts (3n1u2w) 1290 | -9/Mines | Core integrity fell below 20% 1296 | -9/Mines | Destroyed by D-53 Grenadier with Mini Grenade Launcher Last Messages --------------- U-05 Engineer builds a Wall. Acquired Flexi-carbon Leg. U-05 Engineer lays Concrete. Acquired 3 matter. U-05 Engineer builds a Wall. Acquired Terrain Scanner. U-05 Engineer lays Concrete. Acquired 4 matter. U-05 Engineer lays Concrete. Searching scrap... Found Shield Generator. Found Sensor Array. Found 38 Matter. Acquired 13 matter. S-10 Pest destroyed. T-07 Excavator is excavating. Grenade Launcher destroyed. K-01 Serf destroyed. T-07 Excavator destroyed. Spread Laser destroyed. Map ----- +----------------------------------------------------+ | ?#???????????????????????????????????????????????? | | #?#??????????????????????????????????????????????? | | ##???????????????????????????????????????????????? | | #???????????????????????????????????????????????? | | #???????????????????????????????????????????????? | | ##???????????????????????????????????????????????? | | #????????????????????????????????????????????????? | | #?#????? ????????????????????????????????????????? | | ##???????????????????????????????????????????????? | | #?????? ?????????????????????????????????????????? | | #????????????????????????????????????????????????? | | #?????? ?????????????????????????????????????????? | | #?????????????????????????????#??????????????????? | | ####?????????????????????????t#??????????????????? | | #?????????????????????????? #??????????????????? | | #??#?????#?????#??????????? #??????????????????? | | #???????####?####????????? #??????????????????? | | #?#????## ### #######??? #??????????????????? | | ######## ## #### ##?????????????????? | | # #?????????????????? | | #?????????????????? | | # ############# #??????????????????? | | #???????????## #??????????????????? | | # ##????????#??###### #??????????????????? | | # #??????????#??????# #??????????????????? | | #?#???????????????## @ ##??????????????????? | | ###????????#?????????# #??????????????????? | | ??????????????????? dd #?????????????????? | | ?????????????????# #?????????????????? | | ?????????????????# ##### #?????????????????? | | ?#???????????????#$ ???? ##?????????????????? | | ?????????????????# ????? ??????????????????? | | ????????????????? ??????# ?????????????????? | | ???????????????? ???????# ###????????????????? | | ??????????????? ??#??????# ##??????????????????? | | ????????????????????#?????####???????????????????? | | ?????????????????????????????????????????????????? | | ?????????????????????????????????????????????????? | | ?#???????????????????????????????????????????????? | | ??????####???????????????????????????????????????? | | ?????## ####????##??????????????????????????????? | | ????## ####" ???????????????????????????????? | | ????# ???????########??????????????????? | | ????# ????????## ##?????????????????? | | ???## #????????## #?????????????????? | | #### ##??????? #?????????????????? | | ## #????????# #??????????????????? | | ######????# #???????????????????? | | | ### ##??## #????????????????????? | | ### #### ##???????????????????? | +----------------------------------------------------+ Best States ------------- Heat Dissipation 38 Energy Generation 14 Energy Capacity 280 Matter Stores 300 Matter Capacity 300 Sight Range 16 Robot Scan Range 10 Terrain Scan Range 14 Terrain Scan Density 10 Evasion (%) 40 Recoil Reduction 3 Item Schematics ----------------- None Robot Schematics ------------------ None Fabricated ------------ Nothing Alien Tech Used ----------------- None Achievements -------------- Exterminator Quick And Dirty Challenges ------------ None Game ------ Seed TargetingLargeGenerator Manual? 0 Play Time 00:15:33 Cumulative 8.1 hours Start 2022.02.20 @ 08:04:16 End 2022.02.20 @ 08:19:32 Sessions 1 Manual Loads 0 Difficulty Rogue Special Mode None Game No. 15 Rogue 15 Adventurer 0 Explorer 0 Win Type - Total 0 Types 0/0/0/0/0/0/0/0/0 Lore% 9 Gallery% 13 Achievement% 12 Wizard Run 0 Options --------- ASCII 0 Keyboard 0 Movement Numpad Keybinds 0 Fullscreen 1 Font 16/Smallcaps Map View 50x54 Tactical HUD 0 Map Filters NONE Filters NONE Steam 1 RUN: cf43cb6e-a5e9-4cbc-9581-e0a377aacb3a